Cogmind - Beta 15 @@@ ROGUE MODE // 2025.10.12 @ 18:52:01 Player: Bean Result: Destroyed by H-66 Slayer with Gauss Rifle Performance ------------- Evolutions (4) 2000 Regions Visited (13) 2600 Robots Destroyed (89) 445 Value Destroyed (3369) 3369 Prototype IDs (14) 280 Alien Tech Used (0) 0 Bonus (1583) 1583 TOTAL SCORE: 10277 Bonus ------- High Alert Combat Kills 570 Follower Combat Kills 334 Entered Garrisons 200 Met Data Miner 300 Acquired ECA 300 Friendly Fire -121 Cogmind --------- Core Integrity 0/850 Matter 268/300 Energy 58/600 System Corruption 0% Temperature Cool (0) Movement Walking (190) Ox1 Location -5/Proximity Caves Parts ------- > --- POWER (2) -------- (None) > --- PROPULSION (6) --- Armored Medium Treads Enhanced Flexi-carbon Leg > --- UTILITY (4) ------ High-capacity Storage Unit Advanced Energy Well Improved Terrain Scan Processor Targeting Computer > --- WEAPON (3) ------- Neutron Cannon Autogun > --- INVENTORY (20) --- Advanced Heat Sink Advanced Heat Sink Encrypted Comm Array Transmission Jammer Advanced ECM Suite Peak State ------------ > --- POWER ------------ Improved Ion Engine Fusion Compressor > --- PROPULSION ------- Armored Treads Medium Treads Wheel Armored Huge Wheel Nuclear Pulse Thruster > --- UTILITY ---------- High-capacity Storage Unit Advanced Terrain Scanner Improved Terrain Scan Processor Makeshift Terrain Scan Processor > --- WEAPON ----------- Thermic Laser Phase Cannon Heavy Plasma Cannon > --- INVENTORY -------- Advanced Signal Interpreter Encrypted Comm Array Transmission Jammer Precision Rocket Launcher [Rating: 58] Favorites ----------- Power Improved Ion Engine Engine Improved Ion Engine Power Core Fusion Compressor Propulsion Aluminum Leg Treads Light Treads Leg Aluminum Leg Wheel Armored Huge Wheel Flight Unit Nuclear Pulse Thruster Utility Improved Terrain Scan Processor Device Advanced Terrain Scanner Storage Large Storage Unit Processor Improved Terrain Scan Processor Hackware Authchip [R/Combat] Protection Light Armor Plating Weapon Light Cannon Energy Gun Thermic Laser Energy Cannon Heavy Plasma Cannon Ballistic Gun Gauss Rifle Ballistic Cannon Light Cannon Launcher Precision Rocket Launcher Special Weapon Mining Laser Impact Weapon Hammer Slashing Weapon Great Axe Build | -11 -10 -10 -10 -9 -8 -8 -8 -8 -6 -6 -6 -6 -5 ------- Run | Yrd Mat Min Exi Min Mat Sto Gar Rec Fac Low Low Dat Pro Slots Evolved 8 | . . . . . 4 . . . 4 . . . . Power 1 | . . . . . . . . . 1 . . . . Propulsion 4 | . . . . . 3 . . . 1 . . . . Utility 2 | . . . . . 1 . . . 1 . . . . Weapon 1 | . . . . . . . . . 1 . . . . Parts Attached 115 | 9 2 . 1 2 3 1 41 9 26 9 5 . 7 Power 14 | 1 . . . 1 . . 6 1 5 . . . . Engine 9 | 1 . . . 1 . . 4 1 2 . . . . Core 5 | . . . . . . . 2 . 3 . . . . Reactor . | . . . . . . . . . . . . . . Propulsion 36 | 4 . . . . 1 . 15 6 3 2 3 . 2 Treads 12 | . . . . . . . 7 1 1 . 2 . 1 Leg 17 | 2 . . . . 1 . 8 5 . . . . 1 Wheel 4 | 2 . . . . . . . . . 1 1 . . Hover . | . . . . . . . . . . . . . . Flight 3 | . . . . . . . . . 2 1 . . . Utility 35 | 2 . . 1 1 2 1 9 2 9 5 . . 3 Device 15 | 1 . . . 1 1 1 1 . 7 2 . . 1 Storage 5 | 1 . . 1 . 1 . . . . 1 . . 1 Processor 6 | . . . . . . . 1 1 1 2 . . 1 Hackware 2 | . . . . . . . . 1 1 . . . . Protection 7 | . . . . . . . 7 . . . . . . Artifact . | . . . . . . . . . . . . . . Weapon 30 | 2 2 . . . . . 11 . 9 2 2 . 2 Energy Gun 9 | . . . . . . . 4 . 5 . . . . Energy Cannon 5 | . . . . . . . 1 . 1 . 2 . 1 Ballistic Gun 7 | 2 . . . . . . 2 . 2 . . . 1 Ballistic Cannon 2 | . 2 . . . . . . . . . . . . Launcher 3 | . . . . . . . 2 . 1 . . . . Special Weapon 1 | . . . . . . . 1 . . . . . . Impact Weapon 1 | . . . . . . . 1 . . . . . . Slashing Weapon 2 | . . . . . . . . . . 2 . . . Piercing Weapon . | . . . . . . . . . . . . . . Special Melee Weapon . | . . . . . . . . . . . . . . Unidentified Prototypes 4 | . . . . . . . . . 1 . . . 3 Corrupted Parts 3 | . . . . . . . 3 . . . . . . System Corruption 12 | . . . . . . . 12 . . . . . . Parts Lost 55 | . . . . 2 1 . 28 2 9 . 1 . 12 Power 9 | . . . . 1 . . 5 . 1 . . . 2 Propulsion 24 | . . . . . . . 12 2 4 . 1 . 5 Utility 11 | . . . . 1 . . 7 . 2 . . . 1 Weapon 11 | . . . . . 1 . 4 . 2 . . . 4 Highest Loss Streak 10 | . . . . 1 1 . 10 2 4 . 1 . 6 To Critical Strikes 1 | . . . . . . . . . . . . . 1 Average Backups 5 | 1 3 3 6 4 3 4 9 4 3 4 4 4 4 Power . | . 1 1 4 1 1 1 . . . . . . . Propulsion . | . . . . . . . . . . . . . . Utility 2 | . . . . . . . 5 2 1 1 2 2 2 Weapon 2 | 1 2 2 2 2 2 3 3 2 1 2 1 1 1 Tool/Special . | . . . . . . . . . . . . . . Unused Backups 26 | . 1 . . 3 . . 10 4 3 2 . . 3 Power 4 | . . . . 3 . . 1 . . . . . . Propulsion 1 | . . . . . . . . 1 . . . . . Utility 18 | . . . . . . . 9 2 3 1 . . 3 Weapon 3 | . 1 . . . . . . 1 . 1 . . . Tool/Special . | . . . . . . . . . . . . . . Average Slot Usage (%) 80 | . 100 100 100 98 80 73 86 89 55 55 86 93 62 Engine 7 | . 14 14 14 14 9 9 6 8 3 3 6 6 3 Core 2 | . . . . . . . 2 . 4 6 6 6 3 Treads 7 | . . . . . . . 18 2 3 . 9 13 7 Leg 13 | . 28 28 28 28 27 24 16 34 2 . . . . Wheel 1 | . . . . . . . . . . 2 8 13 1 Flight 2 | . . . . . . . . . . 10 8 6 5 Device 8 | . 14 14 14 12 17 18 6 . 12 9 6 6 6 Storage 7 | . 14 14 14 14 9 9 8 . . 2 6 6 5 Processor 6 | . . . . . . . 1 17 8 9 13 13 13 Protection 2 | . . . . . . . 8 . . . . . . Energy Gun 5 | . . . . . . . 11 . 8 2 6 6 3 Energy Cannon 2 | . . . . . . . . . . . 8 13 8 Ballistic Gun 2 | . 12 . . . . 6 1 9 5 . . . . Ballistic Cannon 6 | . 16 28 28 28 18 6 . . . . . . . Impact Weapon 1 | . . . . . . . . 9 1 . . . . Peak Build Rating 58 | 9 9 9 10 10 9 11 27 32 44 54 58 58 58 Average Rating 26 | 6 9 9 9 7 8 9 18 27 30 37 56 58 36 On Entrance 20 | . 9 9 9 10 7 8 11 14 26 17 53 58 58 Naked Turns . | . . . . . . . . . . . . . . Heaviest Build 75 | 13 17 17 22 22 31 30 40 13 38 69 75 75 75 Greatest Support 100 | 20 20 20 20 20 30 30 100 85 51 28 48 38 48 Greatest Overweight (x) 24 | . . . 1 1 1 1 10 . 3 2 2 1 24 Average Overweight (x) . | . . . . . . . . . . . 1 1 1 Largest Inventory Capacity 20 | 8 8 8 10 10 15 15 15 5 5 20 20 20 20 Average Capacity 12 | 7 8 8 8 10 14 15 14 5 5 11 20 20 16 Most Carried 15 | 3 5 4 8 7 4 6 15 5 5 7 6 4 8 Average Carried 5 | 1 3 3 6 4 3 4 10 4 3 4 4 4 4 Final Capacity 20 | 8 8 8 10 10 15 15 5 5 5 20 20 20 20 Final Carried 7 | 3 3 4 7 5 4 5 5 4 3 4 4 4 5 Class Distribution -------------------- 44% | Mutant 24% | Scavenger-Mutant 11% | Derelict-Skirmisher 7% | Skirmisher 6% | Derelict-Mutant Dominant Class ---------------- Mutant | -10/Materials Mutant | -10/Mines Mutant | -10/Exiles Mutant | -9/Mines Mutant | -8/Materials Mutant | -8/Storage Scavenger-Mutant | -8/Garrison Mutant | -8/Recycling Mutant | -6/Factory Derelict-Mutant | -6/Lower Caves Derelict-Skirmisher | -6/Lower Caves Derelict-Skirmisher | -6/Data Miner Skirmisher | -5/Proximity Caves Resources | -11 -10 -10 -10 -9 -8 -8 -8 -8 -6 -6 -6 -6 -5 ----------- Run | Yrd Mat Min Exi Min Mat Sto Gar Rec Fac Low Low Dat Pro Matter Collected 2755 | 304 . 41 . 506 . . 807 167 224 400 125 . 181 Remotely . | . . . . . . . . . . . . . . Salvage Created 3049 | 62 . 26 . 476 . . 1221 317 578 . 117 . 252 Parts 149 | 3 . 5 . 42 . . 54 8 25 . 4 . 8 Haulers Intercepted . | . . . . . . . . . . . . . . Recyclers Shooed 4 | . . . . 2 . . . 1 1 . . . . Parts Field Recycled . | . . . . . . . . . . . . . . Retrieved Matter . | . . . . . . . . . . . . . . Parts Self-Destructed 16 | . . . . . . . . . . . 1 . 15 Prevented . | . . . . . . . . . . . . . . Kills | -11 -10 -10 -10 -9 -8 -8 -8 -8 -6 -6 -6 -6 -5 ------- Run | Yrd Mat Min Exi Min Mat Sto Gar Rec Fac Low Low Dat Pro Combat Hostiles Destroyed 63 | . . 3 . 11 . . 34 3 3 . 3 . 6 Melee 3 | . . . . . . . 1 1 . . 1 . . Guns 29 | . . . . . . . 24 1 2 . . . 2 Cannons 21 | . . 3 . 11 . . 2 . 1 . 1 . 3 AOE 5 | . . . . . . . 4 . . . 1 . . Classes Destroyed 13 | 2 . 1 . 3 . . 5 . 1 . 1 . . Worker 6 | . . . . 5 . . . . 1 . . . . Builder 4 | . . . . 3 . . . . 1 . . . . Tunneler 4 | 1 . . . 3 . . . . . . . . . Recycler 10 | 1 . . . 3 . . . 3 3 . . . . Mechanic 1 | . . . . . . . . . 1 . . . . Swarmer 25 | . . 3 . 10 . . 6 1 . . 2 . 3 Grunt 14 | . . . . 1 . . 13 . . . . . . Brawler 2 | . . . . . . . 2 . . . . . . Duelist 1 | . . . . . . . 1 . . . . . . Sentry 13 | . . . . . . . 9 2 1 . . . 1 Hunter 4 | . . . . . . . 2 . . . . . 2 Programmer 3 | . . . . . . . 1 . 2 . . . . Thug 1 | . . . . 1 . . . . . . . . . Mutant 1 | . . . . . . . . . . . 1 . . Best Kill Streak 6 | 2 . 2 . 5 . . 6 2 4 . 2 . 4 Combat Bots Only 6 | . . 2 . 4 . . 6 2 1 . 2 . 4 Max Kills in Single Turn 2 | 1 . 1 . 1 . . 1 1 2 . 1 . 1 Gunslinging . | . . . . . . . . . . . . . . Exploded 1 | . . . . . . . 1 . . . 1 . . Melee 1 | . . . . . . . 1 1 . . 1 . . Uniques/NPCs Destroyed . | . . . . . . . . . . . . . . Combat | -11 -10 -10 -10 -9 -8 -8 -8 -8 -6 -6 -6 -6 -5 -------- Run | Yrd Mat Min Exi Min Mat Sto Gar Rec Fac Low Low Dat Pro Hostile Shots Fired 679 | . 9 27 . 54 2 . 289 19 116 18 28 . 117 Missed 173 | . 5 4 . 16 . . 68 5 35 7 4 . 29 Hits 506 | . 4 23 . 38 2 . 221 14 81 11 24 . 88 Melee 3 | . . . . . . . 3 . . . . . . Projectile 503 | . 4 23 . 38 2 . 218 14 81 11 24 . 88 AOE 8 | . . . . . . . . 8 . . . . . Critical Strikes 23 | . . . . . . . 15 . 3 . 2 . 3 Damage Taken 7943 | . 50 198 . 324 27 . 3668 374 1468 86 297 . 1451 Core 1458 | . 18 35 . 49 14 . 405 84 462 21 20 . 350 Absorbed by Shields . | . . . . . . . . . . . . . . Regen/Repaired (Parts) 188 | . . . . . . 188 . . . . . . . Core Remaining (%) 55 | 100 . . . 59 . . . 8 . . . . . Volleys Fired 253 | 5 . 8 . 63 . . 108 9 23 . 5 . 32 Largest 3 | 2 . 2 . 2 . . 2 1 3 . 3 . 3 Hottest 260 | 40 . 60 . 60 . . 119 28 260 . 260 . 260 Shots Fired 473 | 10 . 16 . 126 . . 197 11 51 . 9 . 53 Gun 243 | 10 . . . . . . 150 11 42 . 1 . 29 Cannon 202 | . . 16 . 126 . . 22 . 7 . 7 . 24 Launcher 22 | . . . . . . . 19 . 2 . 1 . . Special 6 | . . . . . . . 6 . . . . . . Kinetic 232 | 10 . 16 . 126 . . 35 11 17 . . . 17 Thermal 215 | . . . . . . . 139 . 32 . 8 . 36 Explosive 22 | . . . . . . . 19 . 2 . 1 . . Electromagnetic 4 | . . . . . . . 4 . . . . . . Robot Hit Streak 17 | 4 . 2 . 7 . . 17 5 16 . 1 . 8 Robot Miss Streak 8 | 1 . 2 . 8 . . 4 5 3 . 2 . 3 Penetration Max . | . . . . . . . . . . . . . . Secondary Targets 2 | . . . . . . . 2 . . . . . . Max Gunslinging Chain 1 | . . . . . . . 1 . . . . . . Shots Hit Robots 299 | 7 . 6 . 52 . . 139 13 39 . 8 . 35 Core Hits 134 | 4 . 2 . 27 . . 64 2 18 . 4 . 13 Critical Kills 1 | . . . . . . . 1 . . . . . . Critical Parts Destroyed 6 | . . . . . . . 4 2 . . . . . Critical Strikes 27 | . . . . 2 . . 16 2 3 . 2 . 2 Burn 14 | . . . . . . . 9 . 3 . . . 2 Blast 3 | . . . . 2 . . 1 . . . . . . Smash 8 | . . . . . . . 6 2 . . . . . Sever 2 | . . . . . . . . . . . 2 . . Melee Attacks 64 | . . . . . . . 45 8 4 . 7 . . Impact 57 | . . . . . . . 45 8 4 . . . . Slashing 7 | . . . . . . . . . . . 7 . . Piercing . | . . . . . . . . . . . . . . Sneak Attacks 5 | . . . . . . . . 4 1 . . . . Combat Hostiles 1 | . . . . . . . . 1 . . . . . Follow-up Attacks . | . . . . . . . . . . . . . . Damage Inflicted 6991 | 56 . 85 . 961 . . 3114 393 1104 . 448 . 830 Guns 2374 | 56 . . . . . . 1233 87 661 . . . 337 Cannons 2118 | . . 84 . 944 . . 300 . 206 . 91 . 493 Explosions 1163 | . . . . . . . 851 . 136 . 176 . . Melee 1318 | . . . . . . . 730 306 101 . 181 . . Ramming 18 | . . 1 . 17 . . . . . . . . . Kinetic 1972 | 56 . 84 . 944 . . 354 87 272 . . . 175 Thermal 2455 | . . . . . . . 1114 . 595 . 91 . 655 Explosive 1163 | . . . . . . . 851 . 136 . 176 . . Electromagnetic 65 | . . . . . . . 65 . . . . . . Impact 1137 | . . . . . . . 730 306 101 . . . . Slashing 181 | . . . . . . . . . . . 181 . . Piercing . | . . . . . . . . . . . . . . Highest Corruption 12 | . . . . . . . 12 12 . . . . . Average Corruption 6 | . . . . . . . 5 12 . . . . . Corruption Purged . | . . . . . . . . . . . . . . Corruption Blocked . | . . . . . . . . . . . . . . Effects 75 | . . . . . . . 49 26 . . . . . Message Errors 20 | . . . . . . . 13 7 . . . . . Matter Fused 12 | . . . . . . . 8 4 . . . . . Heat Flow Errors 12 | . . . . . . . 9 3 . . . . . Energy Discharges 11 | . . . . . . . 9 2 . . . . . Data Loss (minor) 7 | . . . . . . . 4 3 . . . . . Data Loss (major) 5 | . . . . . . . 2 3 . . . . . Misfires 3 | . . . . . . . 1 2 . . . . . Alerts 3 | . . . . . . . 2 1 . . . . . Misdirections 1 | . . . . . . . . 1 . . . . . Weapon Failures 1 | . . . . . . . 1 . . . . . . Overload Shots . | . . . . . . . . . . . . . . Overflow Damage 331 | . . 12 . 25 . . 108 150 24 . 7 . 5 Projectiles 45 | . . 12 . 25 . . . . 3 . . . 5 Explosions 21 | . . . . . . . 17 . . . 4 . . Melee 265 | . . . . . . . 91 150 21 . 3 . . Knockbacks 13 | . . . . 11 . . . 1 1 . . . . Impact 2 | . . . . . . . . 1 1 . . . . Kinetic 11 | . . . . 11 . . . . . . . . . Secondary . | . . . . . . . . . . . . . . Self-Inflicted Damage 178 | . . . . . . . 178 . . . . . . Shots 6 | . . . . . . . 6 . . . . . . Rammed . | . . . . . . . . . . . . . . Targets Rammed 5 | . . 1 . 4 . . . . . . . . . Kicked 5 | . . 1 . 4 . . . . . . . . . Crushed . | . . . . . . . . . . . . . . Highest Temperature 757 | . . . . 9 . . 519 232 757 . 296 . 495 Average Temperature 138 | . . . . 9 . . 111 103 267 . 156 . 132 Received Heat Transfer 1877 | . 27 . . 9 9 . 1512 . 150 30 140 . . Effects 36 | . . . . . . . 9 . 23 . 3 . 1 Shutdowns 7 | . . . . . . . 2 . 4 . . . 1 Energy Bleed 3 | . . . . . . . 1 . 2 . . . . Interference 11 | . . . . . . . 1 . 7 . 3 . . Matter Decay 4 | . . . . . . . 1 . 3 . . . . Damage (minor) 8 | . . . . . . . 2 . 6 . . . . Damage (major) 2 | . . . . . . . 2 . . . . . . Damage (core) 1 | . . . . . . . . . 1 . . . . Siege Activations . | . . . . . . . . . . . . . . Martial Activations . | . . . . . . . . . . . . . . Shielding Activations . | . . . . . . . . . . . . . . Robots Disrupted . | . . . . . . . . . . . . . . Combat Hostiles . | . . . . . . . . . . . . . . Robots Corrupted 7 | . . . . . . . 2 4 1 . . . . Combat Hostiles 3 | . . . . . . . 2 1 . . . . . Parts Fried 9 | . . . . . . . 1 7 1 . . . . Impact Corruptions 16 | . . . . . . . 6 8 2 . . . . Robots Melted 2 | . . . . . . . 1 . . . . . 1 Combat Hostiles 2 | . . . . . . . 1 . . . . . 1 Parts Melted 23 | . . . . . . . 14 . 6 . . . 3 Heat Transferred 5971 | . . . . . . . 3292 . 1507 . 137 . 1035 Parts Sabotaged . | . . . . . . . . . . . . . . Parts Stolen . | . . . . . . . . . . . . . . Parts Stripped . | . . . . . . . . . . . . . . Power Chain Reactions . | . . . . . . . . . . . . . . Alert | -11 -10 -10 -10 -9 -8 -8 -8 -8 -6 -6 -6 -6 -5 ------- Run | Yrd Mat Min Exi Min Mat Sto Gar Rec Fac Low Low Dat Pro Maximum Alert Level 4 | . . . . . . . 4 2 1 . . . . Low Security (%) 56 | 100 100 100 . 100 100 100 21 . 94 . . . . Level 1 6 | . . . . . . . 12 . 5 . . . . Level 2 21 | . . . . . . . 24 100 . . . . . Level 3 9 | . . . . . . . 24 . . . . . . Level 4 6 | . . . . . . . 16 . . . . . . Level 5 . | . . . . . . . . . . . . . . High Security . | . . . . . . . . . . . . . . Max Security . | . . . . . . . . . . . . . . Peak Influence 1396 | 5 . 60 . 75 2 3 1396 640 224 . . . . Initial 625 | . . . . . 2 . . 625 224 . . . . Average 338 | 1 . 32 . 20 . . 663 523 62 . . . . Influence Increases 2784 | 10 5 70 . 335 . 3 1731 89 224 15 80 . 222 Destroy 0b10 Robot/C 1440 | . . 60 . 220 . . 840 60 60 . 40 . 160 Destroy 0b10 Robot/NC 125 | 10 . . . 70 . . . 15 30 . . . . Destroy Leader 130 | . . 10 . 30 . . 30 . 30 . 10 . 20 Allied During Kill 44 | . . . . . . . 32 . . . . . 12 Trap Triggered on 0b10 10 | . . . . . . . 10 . . . . . . Successful Hack 22 | . 5 . . . . 3 . 14 . . . . . Disable Machine 30 | . . . . . . . . . 30 . . . . Anti-Garrison Action 550 | . . . . . . . 550 . . . . . . Destroy Structure 128 | . . . . . . . 119 . 9 . . . . Advance Influence 50 | . . . . . . . . . 50 . . . . Partial Spotted 15 | . . . . . . . . . 15 . . . . Lose Combat Pursuer 240 | . . . . 15 . . 150 . . 15 30 . 30 Influence Decreases 2784 | 10 5 50 20 328 7 3 340 1064 640 15 74 6 222 Entered New Map 1039 | . . . 20 . 5 . . 766 242 . . 6 . Time Decay 1216 | 10 5 50 . 308 2 3 . 278 318 15 74 . 153 Lost Part 437 | . . . . 20 . . 280 20 60 . . . 57 Lost Ally 92 | . . . . . . . 60 . 20 . . . 12 Squads Dispatched 4 | . 1 . . . . . . . 3 . . . . Investigation . | . . . . . . . . . . . . . . Extermination 3 | . . . . . . . . . 3 . . . . Reinforcement 1 | . 1 . . . . . . . . . . . . Assault . | . . . . . . . . . . . . . . Garrison . | . . . . . . . . . . . . . . Intercept . | . . . . . . . . . . . . . . Searches Triggered . | . . . . . . . . . . . . . . Construction Impeded . | . . . . . . . . . . . . . . Haulers Reinforced . | . . . . . . . . . . . . . . Active Scanning Responses . | . . . . . . . . . . . . . . Cargo Convoy Interrupts . | . . . . . . . . . . . . . . Stealth | -11 -10 -10 -10 -9 -8 -8 -8 -8 -6 -6 -6 -6 -5 --------- Run | Yrd Mat Min Exi Min Mat Sto Gar Rec Fac Low Low Dat Pro Distress Signals 2 | . . . . 1 1 . . . . . . . . Communications Jammed . | . . . . . . . . . . . . . . Distress Signals . | . . . . . . . . . . . . . . Times Spotted 99 | . 5 3 . 19 1 . 43 3 5 2 4 . 14 Peak Tracking Total 7 | . 4 3 . 5 5 . 7 2 2 1 2 . 5 Tactical Retreats 14 | . . . . 2 . . 7 . . 1 2 . 2 Traps | -11 -10 -10 -10 -9 -8 -8 -8 -8 -6 -6 -6 -6 -5 ------- Run | Yrd Mat Min Exi Min Mat Sto Gar Rec Fac Low Low Dat Pro Traps Triggered 12 | . . . . . . . 11 . 1 . . . . Indirectly . | . . . . . . . . . . . . . . Trap Hack Attempts . | . . . . . . . . . . . . . . Triggered . | . . . . . . . . . . . . . . Disarmed . | . . . . . . . . . . . . . . Reprogrammed . | . . . . . . . . . . . . . . Reused 1 | . . . . . . . 1 . . . . . . Traps Extracted . | . . . . . . . . . . . . . . Installed 4 | . . . . . . . 4 . . . . . . Triggered 1 | . . . . . . . 1 . . . . . . Most Traps Carried 4 | . . . . . . . 4 . . . . . . Machines | -11 -10 -10 -10 -9 -8 -8 -8 -8 -6 -6 -6 -6 -5 ---------- Run | Yrd Mat Min Exi Min Mat Sto Gar Rec Fac Low Low Dat Pro Machines Disabled 8 | . . . . . . . 5 . 2 . 1 . . Max in Single Turn 2 | . . . . . . . 1 . 2 . 1 . . Garrison Relay 5 | . . . . . . . 5 . . . . . . Machines Repaired . | . . . . . . . . . . . . . . Machines Dismantled . | . . . . . . . . . . . . . . Machines Sabotaged . | . . . . . . . . . . . . . . Overloaded Fab Kills . | . . . . . . . . . . . . . . Hacking | -11 -10 -10 -10 -9 -8 -8 -8 -8 -6 -6 -6 -6 -5 --------- Run | Yrd Mat Min Exi Min Mat Sto Gar Rec Fac Low Low Dat Pro Machines Accessed 26 | . 2 . 4 . . 3 2 6 3 . 2 4 . Terminals 10 | . 2 . . . . 1 2 3 2 . . . . Fabricators 1 | . . . . . . . . . 1 . . . . Repair Stations 1 | . . . . . . 1 . . . . . . . Recycling Units 3 | . . . . . . . . 3 . . . . . Scanalyzers . | . . . . . . . . . . . . . . Garrison Access 1 | . . . . . . 1 . . . . . . . Total Hacks 68 | . 4 . 4 . . 6 4 16 4 . 5 25 . Successful 51 | . 3 . 4 . . 6 1 6 1 . 5 25 . Failed 17 | . 1 . . . . . 3 10 3 . . . . Catastrophic 3 | . 1 . . . . . 1 1 . . . . . Database Lockouts . | . . . . . . . . . . . . . . Manual 21 | . 4 . . . . . 1 14 2 . . . . Terminals 18 | . 4 . . . . 1 4 7 2 . . . . Fabricators 2 | . . . . . . . . . 2 . . . . Repair Stations 4 | . . . . . . 4 . . . . . . . Recycling Units 9 | . . . . . . . . 9 . . . . . Scanalyzers . | . . . . . . . . . . . . . . Garrison Access 1 | . . . . . . 1 . . . . . . . Terminal Hacks 36 | . . . 4 . . 1 . 1 . . 5 25 . Record 19 | . . . 4 . . . . . . . 4 11 . Part Schematic 8 | . . . . . . . . . . . . 8 . Robot Schematic 3 | . . . . . . . . . . . . 3 . Prototype ID Bank 3 | . . . . . . . . . . . . 3 . Open Door 1 | . . . . . . . . . . . 1 . . Alert Level 2 | . . . . . . 1 . 1 . . . . . Fabricator Hacks 1 | . . . . . . . . . 1 . . . . Network Status 1 | . . . . . . . . . 1 . . . . Repair Station Hacks 4 | . . . . . . 4 . . . . . . . Scan Component 2 | . . . . . . 2 . . . . . . . Repair 2 | . . . . . . 2 . . . . . . . Recycling Unit Hacks . | . . . . . . . . . . . . . . Scanalyzer . | . . . . . . . . . . . . . . Garrison Access Hacks 1 | . . . . . . 1 . . . . . . . Unlock Access 1 | . . . . . . 1 . . . . . . . Unauthorized Hacks 7 | . 3 . . . . . 1 3 . . . . . Terminals 4 | . 3 . . . . . 1 . . . . . . Assimilate 1 | . 1 . . . . . . . . . . . . Botnet 2 | . 2 . . . . . . . . . . . . Sabotage 1 | . . . . . . . 1 . . . . . . Fabricators . | . . . . . . . . . . . . . . Repair Stations . | . . . . . . . . . . . . . . Recycling Units 3 | . . . . . . . . 3 . . . . . Reject 2 | . . . . . . . . 2 . . . . . Mask 1 | . . . . . . . . 1 . . . . . Scanalyzers . | . . . . . . . . . . . . . . Garrison Access . | . . . . . . . . . . . . . . Data Cores Recovered . | . . . . . . . . . . . . . . Used . | . . . . . . . . . . . . . . Hacking Detections 12 | . 2 . . . . 1 2 6 1 . . . . Full Trace Events 2 | . . . . . . . 1 1 . . . . . Feedback Events . | . . . . . . . . . . . . . . Feedback Blocked . | . . . . . . . . . . . . . . Robot Schematics Acquired 3 | . . . . . . . . . . . . 3 . Robots Built . | . . . . . . . . . . . . . . Authchips . | . . . . . . . . . . . . . . Time . | . . . . . . . . . . . . . . Total Robot Build Rating . | . . . . . . . . . . . . . . Part Schematics Acquired 8 | . . . . . . . . . . . . 8 . Parts Built . | . . . . . . . . . . . . . . Authchips . | . . . . . . . . . . . . . . Time . | . . . . . . . . . . . . . . Total Part Build Rating . | . . . . . . . . . . . . . . Parts Repaired 2 | . . . . . . 2 . . . . . . . Time 52 | . . . . . . 52 . . . . . . . Parts Recycled . | . . . . . . . . . . . . . . Recycled Matter . | . . . . . . . . . . . . . . Retrieved Matter . | . . . . . . . . . . . . . . Retrieved Components . | . . . . . . . . . . . . . . Parts Scanalyzed . | . . . . . . . . . . . . . . Part Schematics Acquired . | . . . . . . . . . . . . . . Parts Damaged . | . . . . . . . . . . . . . . Bothacking | -11 -10 -10 -10 -9 -8 -8 -8 -8 -6 -6 -6 -6 -5 ------------ Run | Yrd Mat Min Exi Min Mat Sto Gar Rec Fac Low Low Dat Pro Used RIF Installer . | . . . . . . . . . . . . . . Robots Hacked . | . . . . . . . . . . . . . . Non-combat . | . . . . . . . . . . . . . . Combat . | . . . . . . . . . . . . . . Robot Hacks Applied . | . . . . . . . . . . . . . . Relay Couplers Released 23 | . . . . . . . 23 . . . . . . Machine Destruction 19 | . . . . . . . 19 . . . . . . Programmers 4 | . . . . . . . 4 . . . . . . Fabnet Peak Effective % . | . . . . . . . . . . . . . . Robots Rewired 3 | . . . . . . . 3 . . . . . . Allies Hacked . | . . . . . . . . . . . . . . Hacks Repelled . | . . . . . . . . . . . . . . Allies | -11 -10 -10 -10 -9 -8 -8 -8 -8 -6 -6 -6 -6 -5 -------- Run | Yrd Mat Min Exi Min Mat Sto Gar Rec Fac Low Low Dat Pro Total Allies 4 | . . . . . . . 3 . . . . . 1 Largest Group 3 | . . . . . . . 3 . . . . . 1 Highest-Rated Group 120 | . . . . . . . 120 . . . . . 96 Highest-Rated Ally 96 | . . . . . . . 40 . . . . . 96 Initial Warlord ECA Mod 31 | . . . . . . . . 7 5 5 5 5 4 Total Orders . | . . . . . . . . . . . . . . Ally Attacks 43 | . . . . . . . 24 . . . . . 19 Total Damage 1292 | . . . . . . . 580 . . . . . 712 Kills 10 | . . . . . . . 8 . . . . . 2 Allies Corrupted . | . . . . . . . . . . . . . . Allies Melted . | . . . . . . . . . . . . . . Intel | -11 -10 -10 -10 -9 -8 -8 -8 -8 -6 -6 -6 -6 -5 ------- Run | Yrd Mat Min Exi Min Mat Sto Gar Rec Fac Low Low Dat Pro Active Infowar (turns) 5068 | 62 134 117 606 91 76 97 169 591 981 439 916 87 702 Optics 1762 | . . . . . . . . 591 981 190 . . . Terrain 3058 | 62 134 117 606 91 76 18 . . . 249 916 87 702 Traps 248 | . . . . . . 79 169 . . . . . . Cloaking 36 | . . . . . . . . . 36 . . . . Jamming 842 | . . . . . . . . . 651 190 . . 1 ECM 322 | . . . . . . . . . 308 . . . 14 Robot Analysis Total . | . . . . . . . . . . . . . . Derelict Logs Recovered 3 | . . . . 1 . . . . . 1 1 . . Drone Launches 2 | . . . . . . . . . 2 . . . . Drone Recoveries . | . . . . . . . . . . . . . . Exploration | -11 -10 -10 -10 -9 -8 -8 -8 -8 -6 -6 -6 -6 -5 ------------- Run | Yrd Mat Min Exi Min Mat Sto Gar Rec Fac Low Low Dat Pro Turns Passed 8391 | 114 134 117 606 1003 77 98 2035 606 1005 491 1007 87 1011 Spaces Moved 5216 | 79 107 74 477 580 29 36 896 392 650 601 584 83 628 Core 366 | 18 . . . . . . 5 . 259 . . . 84 Treads 908 | . . . . . . . 437 87 281 . 6 . 97 Legs 2203 | 37 107 74 477 580 29 36 454 305 81 . . . 23 Wheels 930 | 24 . . . . . . . . . 138 578 83 107 Hover . | . . . . . . . . . . . . . . Flight 809 | . . . . . . . . . 29 463 . . 317 Fastest Speed 40 | 50 120 120 120 120 120 120 120 120 40 40 105 105 40 Average Speed 123 | 91 120 120 126 136 175 129 150 136 122 60 118 105 132 Slowest Speed 1250 | 120 120 120 190 190 190 190 550 160 240 130 245 105 1250 Overloaded Moves . | . . . . . . . . . . . . . . Propulsion Burnouts . | . . . . . . . . . . . . . . Robots Hopped 3 | . . . . . . . . . . 3 . . . Potential Cave-ins . | . . . . . . . . . . . . . . Cave-ins Triggered . | . . . . . . . . . . . . . . Exploration Rate (%) 48 | 5 27 31 90 58 4 9 79 73 16 73 81 70 66 Regions Visited 13 Branch Regions 9 Pre-discovered Areas 2 | . . . . . . . . . . 1 . 1 . Known Exits Taken 1 | . . . . . . 1 . . . . . . . Unknown Exits Taken 11 | 1 1 1 1 1 1 . . 1 1 1 1 1 . Scrap Searched 12 | . . . . . . . . . . 8 2 . 2 Spaces Dug 6 | . . . . . . . 6 . . . . . . Terrain Destroyed 148 | . . . . . . . 120 . 10 . 8 . 10 Melee . | . . . . . . . . . . . . . . Projectile 11 | . . . . . . . . . . . 1 . 10 AOE 137 | . . . . . . . 120 . 10 . 7 . . Terrain Rammed . | . . . . . . . . . . . . . . Walls Destroyed . | . . . . . . . . . . . . . . Machines Disabled . | . . . . . . . . . . . . . . Actions | -11 -10 -10 -10 -9 -8 -8 -8 -8 -6 -6 -6 -6 -5 --------- Run | Yrd Mat Min Exi Min Mat Sto Gar Rec Fac Low Low Dat Pro Total 6635 | 112 112 86 482 663 55 88 1308 449 819 732 876 82 771 Wait 653 | . . 3 . 9 21 43 95 6 46 94 267 . 69 Move 5195 | 78 106 73 476 579 28 35 893 391 649 594 583 82 628 Hop 3 | . . . . . . . . . . 3 . . . Pick Up 162 | 14 2 1 4 3 2 5 57 15 29 15 5 . 10 Fast Attach . | . . . . . . . . . . . . . . Attach 115 | 7 . . . 2 2 4 30 8 25 16 3 . 18 Detach 20 | . . . . . . . . . 6 4 . . 10 Swap 35 | 4 2 . 1 . 1 . 11 1 10 . 4 . 1 Drop 85 | 4 2 . 1 3 1 1 26 11 25 6 2 . 3 Fire 253 | 5 . 8 . 63 . . 108 9 23 . 5 . 32 Melee 64 | . . . . . . . 45 8 4 . 7 . . Ram . | . . . . . . . . . . . . . . Kick 5 | . . 1 . 4 . . . . . . . . . Crush . | . . . . . . . . . . . . . . Escape Stasis 4 | . . . . . . . 4 . . . . . . Rewire 37 | . . . . . . . 35 . 2 . . . . Trap 4 | . . . . . . . 4 . . . . . . Miscellaneous . | . . . . . . . . . . . . . . Route ------- -11/Scrapyard -10/Materials (discovered 2 exits: [*Mat] / [*Min]) -10/Mines -10/Exiles -9/Mines -8/Materials (discovered 2 exits: Fac / *Sto) -8/Storage -8/Garrison (discovered 3 exits: *Rec x3) -8/Recycling -6/Factory -6/Lower Caves -6/Lower Caves (discovered 2 exits: [*Fac] / *Dat) -6/Data Miner -5/Proximity Caves History --------- Turn | Location | Event 5 | -11/Scrapyard | Discovered new exit (range 15) 115 | -11/Scrapyard | Entered Materials 186 | -10/Materials | Discovered new exit (range 16) 187 | -10/Materials | Discovered new exit (range 10) 249 | -10/Materials | Entered Mines 302 | -10/Mines | Build established: Mutant 361 | -10/Mines | Deemed a non-threat by the Exiles lab entrance 361 | -10/Mines | Discovered new exit (range 5) 366 | -10/Mines | Entered Exiles 366 | -10/Exiles | Found Exiles lab abandoned 949 | -10/Exiles | Discovered new exit (range 14) 972 | -10/Exiles | Entered Mines 1011 | -9/Mines | Met a Derelict bent on vengeance 1367 | -9/Mines | Discovered new exit (range 7) 1651 | -9/Mines | Learned 2 Materials zone layouts 1700 | -9/Mines | Assembled infested the area 1705 | -9/Mines | Assisted by a Guerilla fighting off Assembled 1975 | -9/Mines | Entered Materials 1975 | -8/Materials | Evolved 4 slots: Propulsion x3, Utility x1 1976 | -8/Materials | Identified exit to Factory 1977 | -8/Materials | Discovered new exit (range 15) 2052 | -8/Materials | Entered Storage 2113 | -8/Storage | Repaired Aluminum Leg 2141 | -8/Storage | Repaired Lgt. Cannon 2149 | -8/Storage | Identified exit to Garrison 2150 | -8/Storage | Entered Garrison 2164 | -8/Garrison | Triggered checkpoint 2249 | -8/Garrison | Garrison Relay disabled 2536 | -8/Garrison | Triggered checkpoint 2626 | -8/Garrison | Build established: Scavenger-Mutant 2702 | -8/Garrison | Triggered checkpoint 2894 | -8/Garrison | Triggered checkpoint 2993 | -8/Garrison | Garrison Relay disabled 3117 | -8/Garrison | Discovered new exit (range 15) 3312 | -8/Garrison | Triggered checkpoint 3474 | -8/Garrison | Triggered checkpoint 3574 | -8/Garrison | Triggered checkpoint 3577 | -8/Garrison | Lost 10 parts (1p5n2u2w) 3620 | -8/Garrison | Lost 3 parts (1n1u1w) 3664 | -8/Garrison | Discovered new exit (range 8) 3801 | -8/Garrison | Attempted to access garrison exit controls, blocked by remote lockdown 3893 | -8/Garrison | Triggered checkpoint 3941 | -8/Garrison | Discovered new exit (range 13) 3954 | -8/Garrison | Triggered checkpoint 3978 | -8/Garrison | Core integrity fell below 50% 3997 | -8/Garrison | Garrison Relay disabled 4114 | -8/Garrison | Lost 10 parts (3p4n3u) 4116 | -8/Garrison | System corruption reached 10% 4133 | -8/Garrison | Garrison Relay disabled 4185 | -8/Garrison | Entered Recycling 4186 | -8/Recycling | Met a Zionite searching for Scraptown 4668 | -8/Recycling | Build established: Mutant 4717 | -8/Recycling | Core integrity fell below 20% 4769 | -8/Recycling | Discovered new exit (range 17) 4791 | -8/Recycling | Entered Factory 4791 | -6/Factory | Evolved 4 slots: Power x1, Propulsion x1, Utility x1, Weapon x1 4957 | -6/Factory | Lost 4 parts (1p3n) 5601 | -6/Factory | Spotted B-75 Beast 5699 | -6/Factory | Lost 3 parts (1n1u1w) 5776 | -6/Factory | Core integrity fell below 50% 5781 | -6/Factory | Discovered new exit (range 15) 5796 | -6/Factory | Entered Lower Caves 5802 | -6/Lower Caves | Met a Warlord Commander 5803 | -6/Lower Caves | Learned location of Warlord (-5) 5804 | -6/Lower Caves | Warlord Commander delivered Encrypted Comm Array 5808 | -6/Lower Caves | Found Encrypted Comm Array 5815 | -6/Lower Caves | Learned Factory emergency access door positions 6162 | -6/Lower Caves | Discovered new exit (range 14) 6168 | -6/Lower Caves | Encountered a Warlord checkpoint 6251 | -6/Lower Caves | Attracted the attention of an 0b10 checkpoint 6287 | -6/Lower Caves | Entered another Lower Caves area 6326 | -6/Lower Caves | Build established: Derelict-Mutant 6562 | -6/Lower Caves | Attacked by a delusional Derelict stockpiling parts 6781 | -6/Lower Caves | Discovered new exit (range 7) 6877 | -6/Lower Caves | Build established: Derelict-Skirmisher 6879 | -6/Lower Caves | Entered an active Warlord outpost 6904 | -6/Lower Caves | Learned Armory trap positions 6904 | -6/Lower Caves | Learned Factory terminal intel 6904 | -6/Lower Caves | Learned Research terminal intel 6904 | -6/Lower Caves | Learned Extension garrison access intel 6940 | -6/Lower Caves | Learned Factory terminal intel 7270 | -6/Lower Caves | Discovered new exit (range 20) 7294 | -6/Lower Caves | Entered Data Miner 7294 | -6/Data Miner | Discovered new exit (range 6) 7314 | -6/Data Miner | Met Data Miner 7340 | -6/Data Miner | Learned location of Section 7 (-3) 7340 | -6/Data Miner | Acquired the access code to Warlord's prototype stash 7356 | -6/Data Miner | Received God Mode back door access code from Data Miner 7381 | -6/Data Miner | Entered Proximity Caves 7829 | -5/Proximity Caves | Build established: Skirmisher 7935 | -5/Proximity Caves | Escorted by Enhanced Grunt 7990 | -5/Proximity Caves | Lost 6 parts (2p2n2w) 8180 | -5/Proximity Caves | Core integrity fell below 20% 8237 | -5/Proximity Caves | Attracted the attention of an 0b10 checkpoint 8284 | -5/Proximity Caves | Build established: Mutant 8309 | -5/Proximity Caves | Lost 4 parts (1n1u2w) 8381 | -5/Proximity Caves | Ambushed by research squad 8392 | -5/Proximity Caves | Destroyed by H-66 Slayer with Gauss Rifle Last Messages --------------- Acquired Prototype Storage. Acquired Prototype Leg. Acquired 20 matter. Acquired Adv. Heat Sink. Identified Enh. Flexi-carbon Leg. Acquired 10 matter. Identified Neutron Cannon. Acquired 10 matter. Identified Adv. Energy Well. Acquired 10 matter. P-70 Sage: "UNIQUE TECHNOLOGY DETECTED, NEUTRALIZE FOR ANALYSIS." Slug penetrates Wall. Penetrated by Slug. Slug penetrates Wall. Destroyed Hpw. Shock Rifle. Penetrated by Slug. Slug penetrates Wall. P-70 Sage destroyed. Penetrated by Slug. Map ----- +----------------------------------------------------+ | | | | | ?????????????????????????????????????????????????? | | ?????????????????????????????????????????????????? | | ?????????????????????????????????????????????????? | | ?????????????????????????????????????????????????? | | ??????????????????????????????#??????????????????? | | ?????????????????????????????????????????????????? | | ????????????????????????#???#?????#???????#??????? | | ??????????#???????????#??????????????????????????? | | ??????????#?????????#???????#????????????????????? | | ?????#?????????????#????#???????#???#????????????? | | ??????????????????###???????#?????#??????????????? | | ????????????????#???####?????#??#??????##????????? | | ????????????????????# ##????????#?????#????????? | | ????????#?????#??#?## ?????#????#????????#??#??? | | ????????##????????#?# ####?#?#??????#?????#????? | | ?????????????????##?# # ###??##????#??? ??#???? | | ??????#???#??##### # hh ##??# ##?? ?? ??? ??? | | ????#????????# ### #?#? ?????? | | ???????#?????#? m %! ## ? ?? ? | | ???????????????????# | ????? ? | | ???????###?#####????# ??? ??????? | | ??????## #?## ##?????###; ####???? ? ????? ? | | ?##??## ### ##???#??#; # #?##??? ?? ??#?#? ? | | ?#???# ## #????????#@ # #??##?#?##????????? | | ?????# ###?###?## # ##??#??#?#????????? | | #????# #####"## ## ##???###???## ??? | | ?????# ## ########?# ???? ? | | ?????## ## ##### ##?#?##? ? ??? | | ?#????###### #?#?## ##?#?#?# ? | | ???#??##??## ####?# ####??##??# ? | | ??????#???# #### #####??##???# | | ??#???#?#?# ##### ##?##?###????? | | ?????#????# #### ##?#?#?###??#?? | | ##???????#### ## #############?# | | ????#??#???### # #?#### | | ???#???????#?# ####### "# #?###? | | ?????????????## #??#### ########## #?#### | | #???????###?#?## ##### ## ###??#### #### # | | #??????#???#?#?#### ## ######### ### # | | ??????#?##???##?#### ### ## ## # | | ???????#?#?????##?##### #### ## ######### | | ?#????####???????####?# #?# ## ######### | | #??##??????????####?### ## ## #?### ## | | #??????????? ? ????## ### ## %#?## | | ##????#????? ? ?##??# % /##### | | ##???#??#????????#??## # """ | | #?????#???? ?? ???#### ## """""" | | #?###??????? ????####### ### "" """ | +----------------------------------------------------+ Best States ------------- Heat Dissipation 51 Energy Generation 25 Energy Capacity 600 Matter Stores 300 Matter Capacity 300 Sight Range 18 Terrain Scan Range 20 Terrain Scan Density 235 ECM Strength 2 Jamming Range 12 Cloak Strength 2 Armor Coverage 300 Evasion (%) 62 Targeting Accuracy 5 Melee Accuracy 5 Recoil Reduction 5 Defensive Hacking 12 Authchip Count 4 Item Schematics ----------------- Combat Drone Bay | -6/Data Miner | Free Lgt. Regenerative Plating | -6/Data Miner | Free Enh. Armored Leg | -6/Data Miner | Free Exp. Heat Sink | -6/Data Miner | Free Hvy. Gatling Laser | -6/Data Miner | Free Centrium Wheel | -6/Data Miner | Free Adv. Transmission Jammer | -6/Data Miner | Free Force Lance | -6/Data Miner | Free Robot Schematics ------------------ L-41 Fighter | -6/Data Miner | Free E-15 Imp | -6/Data Miner | Free B-60 Warrior | -6/Data Miner | Free Fabricated ------------ Nothing Repaired ---------- Aluminum Leg | 16% | -8/Storage Lgt. Cannon | 5% | -8/Storage Alien Tech Used ----------------- None Achievements -------------- Leap Before You Look Novice Programmer Omniscient Cartographer The Oracle Challenges ------------ None Game ------ Seed FusionLaserWheel Manual? 0 Play Time 01:40:49 Cumulative 21.9 hours Start 2025.10.12 @ 13:53:28 End 2025.10.12 @ 18:52:01 Sessions 3 Manual Loads 0 Difficulty Rogue Special Mode None Game No. 60 Rogue 60 Adventurer 0 Explorer 0 Win Type - Total 0 Types 0/0/0/0/0/0/0/0/0/0 Lore% 20 Gallery% 26 Achievement% 23 Wizard Run 0 Options --------- Layout 2 ASCII 0 Keyboard 0 Movement Numpad Keybinds 0 Fullscreen 1 Font 24/Smallcaps Map View 50x44 Zoom Use 0% Tactical HUD 0 Map Filters NONE Filters NONE Steam 1 RUN: ce6debe3-7cd3-4870-b25a-e62883d7d1da